[Event "GER-ch Youth U10 2019"]
[Site "Willingen"]
[Date "2019.06.14"]
[Round "9.2"]
[White "Grabs, Peter"]
[Black "Torosyan, Bagrat"]
[Result "0-1"]
[ECO "B30"]
[WhiteElo "1575"]
[BlackElo "1444"]
[Annotator "NA"]
[PlyCount "90"]
[EventDate "2019.06.07"]
[EventType "swiss"]
[EventRounds "11"]
[EventCountry "GER"]
[SourceTitle "playchess.com"]
[Source "ChessBase"]
[SourceQuality "1"]
[TimeControl "40/4500+30:900+30"]

1. e4 {[%emt 0:00:00]} c5 {[%emt 0:00:00]} 2. Nf3 {[%emt 0:00:00]} Nc6 {[%emt 0:00:00]} 3. Bb5 {[%emt 0:00:00]} e5 {[%emt 0:00:00]} 4. O-O {[%emt 0:00:42]} Nge7 {[%emt 0:00:00]} 5. Re1 {[%emt 0:05:42]} g6 {[%emt 0:00:09]} 6. c3 {[%emt 0:06:37]} Bg7 {[%emt 0:00:15]} 7. Na3 {[%emt 0:04:41]} O-O {[%emt 0:00:45]} 8. Nc2 {[%emt 0:03:37]} d5 {[%emt 0:00:25]} 9. exd5 {[%emt 0:00:38]} Qxd5 {[%emt 0:00:15]} 10. Ne3 {[%emt 0:01:58]} Qd8 {[%emt 0:02:24]} 11. b3 {[%emt 0:14:19]} Be6 {[%emt 0:00:35]} 12. Bb2 {[%emt 0:06:56]} a6 {[%emt 0:07:25]} 13. Bxc6 {[%emt 0:02:35]} Nxc6 14. h3 {[%emt 0:03:14]} e4 {[%emt 0:00:54]} 15. Nh2 {[%emt 0:04:59]} Qd3 {[%emt 0:01:45]} 16. Qc2 {[%emt 0:02:14]} Ne5 {[%emt 0:06:28]} 17. Ba3 {[%emt 0:03:33]} Rfd8 {[%emt 0:06:24]} 18. Rad1 {[%emt 0:01:13]} f5 {[%emt 0:02:02]} 19. Qxd3 {[%emt 0:02:41]} Nxd3 {[%emt 0:00:10]} 20. Re2 {[%emt 0:00:30]} b5 {[%emt 0:02:12]} 21. Bc1 {[%emt 0:03:05]} c4 {[%emt 0:01:40]} 22. b4 {[%emt 0:00:16]} a5 {[%emt 0:00:19]} 23. bxa5 {[%emt 0:01:41]} Rxa5 {[%emt 0:00:28]} 24. a3 {[%emt 0:00:23]} f4 {[%emt 0:18:59]} 25. Nc2 {[%emt 0:00:20]} Bf5 {[%emt 0:15:55]} 26. Nf1 {[%emt 0:06:44]} g5 {[%emt 0:02:06]} 27. Nh2 {[%emt 0:04:50]} h5 {[%emt 0:00:12]} 28. f3 {[%emt 0:01:42]} Re8 {[%emt 0:11:03]} 29. fxe4 {[%emt 0:00:46]} Rxe4 {[%emt 0:00:38]} 30. Rxe4 {[%emt 0:00:24]} Bxe4 {[%emt 0:00:07]} 31. Nf3 {[%emt 0:00:20]} Bxf3 {[%emt 0:00:35]} 32. gxf3 {[%emt 0:00:07]} Bf8 {[%emt 0:00:30]} 33. Nd4 {[%emt 0:00:50]} Bc5 {[%emt 0:00:28]} 34. Kg2 {[%emt 0:01:21]} Bxd4 {[%emt 0:00:16]} 35. cxd4 {[%emt 0:00:06]} Kf7 {[%emt 0:00:35]} 36. Kf1 {[%emt 0:00:38]} Ke6 {[%emt 0:00:36]} 37. Ke2 {[%emt 0:00:22]} Kf5 {[%emt 0:00:23]} 38. Rg1 {[%emt 0:00:46]} Ra6 {[%emt 0:00:13]} 39. Kd1 {[%emt 0:02:21]} Rg6 {[%emt 0:01:39]} 40. Kc2 {[%emt 0:01:13]} g4 {[%emt 0:00:09]} 41. hxg4+ {[%emt 0:01:23]} hxg4 {[%emt 0:00:09]} 42. fxg4+ {[%emt 0:00:04]} Rxg4 {[%emt 0:00:12]} 43. Rf1 {[%emt 0:02:46]} Ke4 {[%emt 0:00:31]} 44. a4 {[%emt 0:02:38]} b4 {[%emt 0:00:31]} 45. a5 {[%emt 0:02:15]} Rg5 {[%emt 0:00:16] normal} 0-1

[Event "GER-ch Youth U10 2019"]
[Site "Willingen"]
[Date "2019.06.14"]
[Round "9.3"]
[White "Besou, Hussain"]
[Black "Sommer, Justus"]
[Result "1-0"]
[ECO "A25"]
[WhiteElo "1785"]
[BlackElo "1684"]
[Annotator "NA"]
[PlyCount "109"]
[EventDate "2019.06.07"]
[EventType "swiss"]
[EventRounds "11"]
[EventCountry "GER"]
[SourceTitle "playchess.com"]
[Source "ChessBase"]
[SourceQuality "1"]
[TimeControl "40/4500+30:900+30"]

1. c4 {[%emt 0:00:00]} e5 {[%emt 0:00:05]} 2. Nc3 {[%emt 0:00:00]} Nc6 {[%emt 0:00:09]} 3. g3 {[%emt 0:00:01]} Nf6 {[%emt 0:00:22]} 4. Bg2 {[%emt 0:00:12]} Bc5 {[%emt 0:00:15]} 5. Nf3 {[%emt 0:00:53]} d6 {[%emt 0:00:18]} 6. O-O {[%emt 0:00:32]} O-O {[%emt 0:00:51]} 7. d3 {[%emt 0:01:15]} Be6 {[%emt 0:01:04]} 8. Ng5 {[%emt 0:03:02]} Bg4 {[%emt 0:03:38]} 9. h3 {[%emt 0:01:52]} Bh5 {[%emt 0:01:22]} 10. a3 {[%emt 0:01:15]} a5 {[%emt 0:00:12]} 11. Rb1 {[%emt 0:01:15]} h6 {[%emt 0:01:41]} 12. Nge4 {[%emt 0:01:02]} Nxe4 13. Nxe4 {[%emt 0:00:25]} Bb6 {[%emt 0:01:38]} 14. b4 {[%emt 0:01:05]} Nd4 {[%emt 0:02:47]} 15. g4 {[%emt 0:00:17]} Bg6 {[%emt 0:00:21]} 16. c5 {[%emt 0:00:33]} Bxe4 {[%emt 0:01:14]} 17. Bxe4 {[%emt 0:00:14]} dxc5 {[%emt 0:01:12]} 18. bxc5 {[%emt 0:00:12]} Bxc5 {[%emt 0:00:20]} 19. e3 {[%emt 0:00:15]} Ne6 {[%emt 0:00:42]} 20. Rxb7 {[%emt 0:00:15]} Bb6 {[%emt 0:00:43]} 21. Rxb6 {[%emt 0:00:48]} cxb6 {[%emt 0:00:08]} 22. Bxa8 {[%emt 0:00:04]} Qxa8 {[%emt 0:00:06]} 23. Bb2 {[%emt 0:01:37]} Qd5 {[%emt 0:01:24]} 24. Qe2 {[%emt 0:07:35]} Rd8 {[%emt 0:01:57]} 25. Rd1 {[%emt 0:06:59]} e4 {[%emt 0:04:56]} 26. d4 {[%emt 0:03:25]} Ng5 {[%emt 0:01:23]} 27. Kg2 {[%emt 0:01:00]} Nf3 {[%emt 0:01:13]} 28. Rh1 {[%emt 0:01:09]} f5 {[%emt 0:01:40]} 29. Rc1 {[%emt 0:00:57]} fxg4 {[%emt 0:02:04]} 30. Qc4 {[%emt 0:00:23]} gxh3+ {[%emt 0:00:11]} 31. Kxh3 {[%emt 0:00:18]} Kh7 {[%emt 0:01:17]} 32. Qxd5 {[%emt 0:00:07]} Rxd5 {[%emt 0:00:08]} 33. Kg4 {[%emt 0:01:15]} Ng5 {[%emt 0:02:58]} 34. Rc6 {[%emt 0:01:15]} Rb5 {[%emt 0:00:46]} 35. Bc1 {[%emt 0:01:16]} Nf7 {[%emt 0:04:53]} 36. Kf4 {[%emt 0:00:32]} h5 {[%emt 0:05:43]} 37. Kxe4 {[%emt 0:01:02]} h4 {[%emt 0:00:25]} 38. Kf3 {[%emt 0:00:04]} Rg5 {[%emt 0:00:17]} 39. e4 {[%emt 0:00:47]} Rg1 {[%emt 0:00:11]} 40. Bf4 {[%emt 0:00:40]} h3 {[%emt 0:00:53]} 41. Rc1 {[%emt 0:15:20]} Ng5+ {[%emt 0:15:48]} 42. Bxg5 {[%emt 0:00:08]} Rxg5 {[%emt 0:00:11]} 43. Rh1 {[%emt 0:00:33]} Rb5 {[%emt 0:01:33]} 44. Rxh3+ {[%emt 0:00:06]} Kg6 {[%emt 0:00:07]} 45. Ke2 {[%emt 0:00:59]} Rb2+ {[%emt 0:00:42]} 46. Ke1 {[%emt 0:00:13]} Rb1+ {[%emt 0:00:10]} 47. Kd2 {[%emt 0:00:28]} Rb2+ {[%emt 0:00:08]} 48. Kc3 {[%emt 0:00:59]} Rxf2 {[%emt 0:00:30]} 49. Rg3+ {[%emt 0:00:37]} Kf7 {[%emt 0:00:15]} 50. e5 {[%emt 0:02:34]} b5 {[%emt 0:02:36]} 51. d5 {[%emt 0:00:20]} Rf4 {[%emt 0:01:10]} 52. e6+ {[%emt 0:00:46]} Kf6 {[%emt 0:01:29]} 53. Re3 {[%emt 0:00:08]} Rc4+ {[%emt 0:00:45]} 54. Kb2 {[%emt 0:00:50] normal} Ke7 {[%emt 0:02:29] normal} 55. d6+ {[%emt 0:00:12] normal} 1-0

[Event "GER-ch Youth U10 2019"]
[Site "Willingen"]
[Date "2019.06.14"]
[Round "9.4"]
[White "Sauer, Tim"]
[Black "Arora, Abhiraaj"]
[Result "1-0"]
[ECO "A22"]
[WhiteElo "1553"]
[BlackElo "1454"]
[Annotator "NA"]
[PlyCount "92"]
[EventDate "2019.06.07"]
[EventType "swiss"]
[EventRounds "11"]
[EventCountry "GER"]
[SourceTitle "playchess.com"]
[Source "ChessBase"]
[SourceQuality "1"]
[TimeControl "40/4500+30:900+30"]

1. c4 {[%emt 0:00:00]} e5 {[%emt 0:00:00]} 2. Nc3 {[%emt 0:00:00]} Nf6 {[%emt 0:00:00]} 3. g3 {[%emt 0:00:00]} c6 {[%emt 0:00:00]} 4. Nf3 {[%emt 0:00:00]} e4 {[%emt 0:00:00]} 5. Nd4 {[%emt 0:00:00]} d5 {[%emt 0:00:05]} 6. cxd5 {[%emt 0:00:13]} Qb6 {[%emt 0:00:16]} 7. Nb3 {[%emt 0:00:56]} cxd5 {[%emt 0:00:11]} 8. Bg2 {[%emt 0:00:25]} Nc6 {[%emt 0:01:19]} 9. O-O {[%emt 0:00:49]} Be6 {[%emt 0:02:45]} 10. d3 {[%emt 0:03:23]} exd3 {[%emt 0:00:35]} 11. Qxd3 {[%emt 0:03:14]} Rd8 {[%emt 0:03:11]} 12. Bg5 {[%emt 0:03:55]} Be7 {[%emt 0:08:21]} 13. Rac1 {[%emt 0:01:28]} O-O {[%emt 0:03:29]} 14. Na4 {[%emt 0:12:04]} Qc7 {[%emt 0:01:37]} 15. Bf4 {[%emt 0:02:55]} Qc8 {[%emt 0:04:17]} 16. Nd4 {[%emt 0:08:44]} Bh3 {[%emt 0:03:57]} 17. Nc5 {[%emt 0:07:59]} Ne4 {[%emt 0:04:24]} 18. Nxc6 {[%emt 0:09:51]} Qxc6 {[%emt 0:20:30]} 19. Nxe4 {[%emt 0:24:38]} dxe4 {[%emt 0:00:22]} 20. Qxd8 {[%emt 0:00:40]} Rxd8 {[%emt 0:00:47]} 21. Rxc6 {[%emt 0:00:17]} Bxg2 {[%emt 0:00:29]} 22. Kxg2 {[%emt 0:00:46]} bxc6 {[%emt 0:00:07]} 23. Rc1 {[%emt 0:00:09]} c5 {[%emt 0:00:38]} 24. Be3 {[%emt 0:01:47]} Rd5 {[%emt 0:00:43]} 25. Rc4 {[%emt 0:01:46]} f5 {[%emt 0:01:22]} 26. Ra4 {[%emt 0:00:26]} Rd7 {[%emt 0:00:25]} 27. Ra5 {[%emt 0:00:48]} Rc7 {[%emt 0:01:22]} 28. Kf1 {[%emt 0:01:05]} g6 {[%emt 0:00:58]} 29. Ke1 {[%emt 0:00:08]} Rb7 {[%emt 0:00:36]} 30. b3 {[%emt 0:00:31]} Rc7 {[%emt 0:00:53]} 31. Kd1 {[%emt 0:00:28]} Kf7 {[%emt 0:00:19]} 32. Kc2 {[%emt 0:00:12]} Ke6 {[%emt 0:00:22]} 33. Kc3 {[%emt 0:00:26]} Kd5 {[%emt 0:00:32]} 34. b4 {[%emt 0:01:06]} Kc6 {[%emt 0:01:16]} 35. Bxc5 {[%emt 0:00:13]} Kd5 {[%emt 0:01:00]} 36. Rxa7 {[%emt 0:00:44]} Rxc5+ {[%emt 0:02:37]} 37. bxc5 {[%emt 0:00:12]} Bxc5 {[%emt 0:00:07]} 38. Ra5 {[%emt 0:00:21]} Kc6 {[%emt 0:00:18]} 39. e3 {[%emt 0:00:36]} Kb6 {[%emt 0:00:25]} 40. Ra8 {[%emt 0:00:10]} Bd6 {[%emt 0:00:19]} 41. Re8 {[%emt 0:15:28]} Kc7 {[%emt 0:15:47]} 42. Kc2 {[%emt 0:00:29]} Bb4 {[%emt 0:00:46]} 43. Kd1 {[%emt 0:00:07]} Kd7 {[%emt 0:00:33]} 44. Rh8 {[%emt 0:00:09]} Ke6 {[%emt 0:00:39]} 45. Rxh7 {[%emt 0:00:13]} Kf6 {[%emt 0:00:12]} 46. Rb7 {[%emt 0:00:08]} Ba5 {[%emt 0:00:18] normal} 1-0

[Event "GER-ch Youth U10 2019"]
[Site "Willingen"]
[Date "2019.06.14"]
[Round "9.5"]
[White "Haubold, Christian Lucas"]
[Black "Ermitsch, Magnus"]
[Result "0-1"]
[ECO "B48"]
[WhiteElo "1387"]
[BlackElo "1843"]
[Annotator "NA"]
[PlyCount "82"]
[EventDate "2019.06.07"]
[EventType "swiss"]
[EventRounds "11"]
[EventCountry "GER"]
[SourceTitle "playchess.com"]
[Source "ChessBase"]
[SourceQuality "1"]
[TimeControl "40/4500+30:900+30"]

1. e4 {[%emt 0:00:00]} c5 {[%emt 0:00:13]} 2. Nf3 {[%emt 0:00:00]} e6 {[%emt 0:00:37]} 3. d4 {[%emt 0:00:53]} cxd4 {[%emt 0:00:43]} 4. Nxd4 {[%emt 0:00:38]} Nc6 {[%emt 0:00:43]} 5. Nc3 {[%emt 0:02:13]} Qc7 {[%emt 0:01:00]} 6. Be3 {[%emt 0:01:00]} Nf6 {[%emt 0:00:37]} 7. Bd3 {[%emt 0:01:53]} a6 {[%emt 0:02:36]} 8. O-O {[%emt 0:01:21]} b5 {[%emt 0:00:35]} 9. Nxc6 {[%emt 0:01:34]} Qxc6 {[%emt 0:01:21]} 10. f3 {[%emt 0:13:31]} Bc5 {[%emt 0:00:30]} 11. Qe2 {[%emt 0:00:36]} Bb7 {[%emt 0:04:37]} 12. Kh1 {[%emt 0:01:15]} Bxe3 {[%emt 0:07:29]} 13. Qxe3 {[%emt 0:00:18]} d6 {[%emt 0:02:58]} 14. a4 {[%emt 0:05:31]} b4 {[%emt 0:02:10]} 15. Na2 {[%emt 0:01:39]} Qc5 {[%emt 0:00:33]} 16. Qd2 {[%emt 0:00:29]} a5 {[%emt 0:01:25]} 17. c3 {[%emt 0:02:34]} bxc3 {[%emt 0:01:45]} 18. Qxc3 {[%emt 0:00:11]} Qxc3 {[%emt 0:01:01]} 19. Nxc3 {[%emt 0:00:10]} Ke7 {[%emt 0:01:16]} 20. Rfe1 {[%emt 0:03:47]} Rhd8 {[%emt 0:15:55]} 21. g3 {[%emt 0:03:12]} d5 {[%emt 0:01:08]} 22. e5 {[%emt 0:00:16]} Nd7 {[%emt 0:00:19]} 23. Nb5 {[%emt 0:02:32]} Nc5 {[%emt 0:06:24]} 24. Bc2 {[%emt 0:03:54]} Rab8 {[%emt 0:06:52]} 25. Nd4 {[%emt 0:06:22]} Rdc8 {[%emt 0:01:51]} 26. Rab1 {[%emt 0:01:39]} Nxa4 {[%emt 0:07:44]} 27. Bxa4 {[%emt 0:00:45]} Rc4 {[%emt 0:02:31]} 28. Nxe6 {[%emt 0:00:52]} fxe6 {[%emt 0:01:11]} 29. Bb3 {[%emt 0:00:18]} Rb4 {[%emt 0:00:37]} 30. Bc2 {[%emt 0:00:23]} d4 {[%emt 0:04:32]} 31. Kg2 {[%emt 0:01:29]} Bd5 {[%emt 0:00:25]} 32. b3 {[%emt 0:02:04]} Bxb3 {[%emt 0:01:27]} 33. Bxh7 {[%emt 0:00:23]} Bc4 {[%emt 0:01:59]} 34. Rec1 {[%emt 0:01:02]} d3 {[%emt 0:01:03]} 35. Ra1 {[%emt 0:02:47]} Rb2+ {[%emt 0:01:19]} 36. Kh3 {[%emt 0:00:23]} d2 {[%emt 0:01:37]} 37. Rxc4 {[%emt 0:01:40]} Rb1 {[%emt 0:00:44]} 38. Rxa5 {[%emt 0:01:31]} d1=Q {[%emt 0:00:38]} 39. Rc7+ {[%emt 0:00:13]} Kf8 {[%emt 0:02:07]} 40. Raa7 {[%emt 0:02:34]} Qf1+ {[%emt 0:01:38]} 41. Kg4 {[%emt 0:15:45] normal} R1b4+ {[%emt 0:12:49] normal} 0-1

[Event "GER-ch Youth U10 2019"]
[Site "Willingen"]
[Date "2019.06.14"]
[Round "9.6"]
[White "Dorendorf, Mika"]
[Black "Haubold, Sebastian Marcel"]
[Result "1/2-1/2"]
[ECO "B24"]
[WhiteElo "1398"]
[BlackElo "1506"]
[Annotator "NA"]
[PlyCount "111"]
[EventDate "2019.06.07"]
[EventType "swiss"]
[EventRounds "11"]
[EventCountry "GER"]
[SourceTitle "playchess.com"]
[Source "ChessBase"]
[SourceQuality "1"]
[TimeControl "40/4500+30:900+30"]

1. e4 {[%emt 0:00:00]} c5 {[%emt 0:00:00]} 2. Nc3 {[%emt 0:00:00]} Nc6 {[%emt 0:00:00]} 3. g3 {[%emt 0:00:06]} Nf6 {[%emt 0:00:28]} 4. Bg2 {[%emt 0:00:47]} g6 {[%emt 0:01:07]} 5. d3 {[%emt 0:01:35]} Bg7 {[%emt 0:01:45]} 6. Be3 {[%emt 0:01:09]} d6 {[%emt 0:01:19]} 7. Qd2 {[%emt 0:00:31]} O-O {[%emt 0:02:08]} 8. Bh6 {[%emt 0:00:34]} Be6 {[%emt 0:04:26]} 9. h4 Qb6 {[%emt 0:07:40]} 10. O-O-O {[%emt 0:02:41]} Qa6 {[%emt 0:04:35]} 11. Kb1 {[%emt 0:01:08]} b5 {[%emt 0:09:19]} 12. h5 {[%emt 0:03:30]} b4 {[%emt 0:14:47]} 13. Nd5 {[%emt 0:00:26]} Bxd5 {[%emt 0:05:10]} 14. exd5 {[%emt 0:00:20]} Nd4 {[%emt 0:03:42]} 15. Nf3 {[%emt 0:01:30]} Nxf3 {[%emt 0:01:57]} 16. Bxf3 {[%emt 0:01:00]} Qc8 {[%emt 0:00:49]} 17. hxg6 {[%emt 0:01:13]} fxg6 {[%emt 0:00:37]} 18. Bxg7 {[%emt 0:01:44]} Kxg7 {[%emt 0:00:29]} 19. Qh6+ {[%emt 0:00:44]} Kf7 {[%emt 0:00:19]} 20. Rde1 {[%emt 0:01:22]} Rh8 {[%emt 0:01:43]} 21. Rxe7+ {[%emt 0:01:00]} Kxe7 {[%emt 0:02:29]} 22. Qg7+ {[%emt 0:00:14]} Kd8 {[%emt 0:01:58]} 23. Qxh8+ {[%emt 0:00:38]} Ne8 {[%emt 0:01:21]} 24. Re1 {[%emt 0:04:38]} Qd7 {[%emt 0:02:28]} 25. Bg4 {[%emt 0:00:37]} Qf7 {[%emt 0:00:17]} 26. Re2 {[%emt 0:01:33]} Kc7 {[%emt 0:01:39]} 27. f4 {[%emt 0:01:39]} Rd8 {[%emt 0:00:57]} 28. Be6 {[%emt 0:03:04]} Qe7 {[%emt 0:01:24]} 29. Qg8 {[%emt 0:00:43]} Nf6 {[%emt 0:00:30]} 30. Qf7 {[%emt 0:00:15]} Re8 {[%emt 0:00:09]} 31. Qxe7+ {[%emt 0:01:04]} Rxe7 {[%emt 0:00:13]} 32. Rh2 {[%emt 0:01:14]} h5 {[%emt 0:00:29]} 33. b3 {[%emt 0:00:23]} Ne8 {[%emt 0:00:57]} 34. Kc1 {[%emt 0:01:52]} Ng7 {[%emt 0:00:12]} 35. g4 {[%emt 0:02:49]} Nxe6 {[%emt 0:00:33]} 36. dxe6 {[%emt 0:00:10]} hxg4 {[%emt 0:00:19]} 37. Rg2 {[%emt 0:00:07]} Rxe6 {[%emt 0:00:05]} 38. Rxg4 {[%emt 0:00:08]} Kc6 {[%emt 0:00:21]} 39. Kd2 {[%emt 0:00:26]} a5 {[%emt 0:01:34]} 40. Rg3 {[%emt 0:00:23]} Kb5 {[%emt 0:00:10]} 41. Re3 {[%emt 0:15:24]} Rf6 {[%emt 0:15:34]} 42. Rf3 {[%emt 0:01:16]} g5 {[%emt 0:00:13]} 43. Ke3 {[%emt 0:00:22]} Rxf4 {[%emt 0:00:16]} 44. Rxf4 {[%emt 0:00:14]} gxf4+ {[%emt 0:00:10]} 45. Kxf4 {[%emt 0:00:06]} Kc6 {[%emt 0:01:11]} 46. Ke4 {[%emt 0:00:21]} d5+ {[%emt 0:01:16]} 47. Ke5 {[%emt 0:00:09]} c4 {[%emt 0:00:12]} 48. Kd4 {[%emt 0:00:32]} cxb3 {[%emt 0:00:56]} 49. cxb3 {[%emt 0:00:26]} Kd6 {[%emt 0:00:16]} 50. Ke3 {[%emt 0:00:11]} Ke5 {[%emt 0:00:09]} 51. d4+ {[%emt 0:00:38]} Kf5 {[%emt 0:00:18]} 52. Kf3 {[%emt 0:00:08]} Kg5 {[%emt 0:00:39]} 53. Kg3 {[%emt 0:00:08]} Kf5 {[%emt 0:00:13]} 54. Kf3 {[%emt 0:00:06]} Kg5 {[%emt 0:03:43]} 55. Kg3 {[%emt 0:00:07]} Kf5 {[%emt 0:00:18]} 56. Kf3 {normal Ke4+} 1/2-1/2

[Event "GER-ch Youth U10 2019"]
[Site "Willingen"]
[Date "2019.06.14"]
[Round "9.7"]
[White "Huber, Benedikt Thomas"]
[Black "Fietz, Nils"]
[Result "1/2-1/2"]
[ECO "C47"]
[WhiteElo "1441"]
[BlackElo "1677"]
[Annotator "NA"]
[PlyCount "113"]
[EventDate "2019.06.07"]
[EventType "swiss"]
[EventRounds "11"]
[EventCountry "GER"]
[SourceTitle "playchess.com"]
[Source "ChessBase"]
[SourceQuality "1"]
[TimeControl "40/4500+30:900+30"]

1. e4 {[%emt 0:00:00]} e5 {[%emt 0:00:00]} 2. Nf3 {[%emt 0:00:00]} Nf6 {[%emt 0:00:00]} 3. Nc3 {[%emt 0:00:00]} Nc6 {[%emt 0:00:14]} 4. a3 {[%emt 0:00:00]} d5 {[%emt 0:00:43]} 5. Bb5 {[%emt 0:01:30]} Bg4 {[%emt 0:04:09]} 6. exd5 {[%emt 0:03:05]} Nxd5 {[%emt 0:00:12]} 7. Qe2 {[%emt 0:01:16]} f6 {[%emt 0:01:46]} 8. Qe4 {[%emt 0:02:53]} Bxf3 {[%emt 0:00:23]} 9. Qxf3 {[%emt 0:00:15]} Nde7 {[%emt 0:00:20]} 10. O-O {[%emt 0:07:52]} Qd7 {[%emt 0:00:22]} 11. Na4 {[%emt 0:03:24]} O-O-O {[%emt 0:02:25]} 12. Nc5 {[%emt 0:04:37]} Qd5 {[%emt 0:01:19]} 13. Qxd5 {[%emt 0:02:51]} Rxd5 {[%emt 0:01:20]} 14. b4 {[%emt 0:00:26]} b6 {[%emt 0:00:45]} 15. c4 {[%emt 0:00:45]} Rd4 {[%emt 0:02:32]} 16. Nb3 {[%emt 0:01:48]} Rd3 {[%emt 0:00:55]} 17. Rb1 {[%emt 0:00:48]} Kb7 {[%emt 0:01:17]} 18. c5 {[%emt 0:01:04]} Rd5 {[%emt 0:01:07]} 19. Bc4 {[%emt 0:00:46]} Rd8 {[%emt 0:00:50]} 20. b5 {[%emt 0:03:13]} Nd4 {[%emt 0:00:57]} 21. cxb6 {[%emt 0:01:03]} axb6 {[%emt 0:00:38]} 22. Nxd4 {[%emt 0:00:29]} Rxd4 {[%emt 0:00:28]} 23. d3 {[%emt 0:00:45]} Nf5 {[%emt 0:00:46]} 24. Bb2 {[%emt 0:01:26]} Rd8 {[%emt 0:00:14]} 25. a4 {[%emt 0:02:58]} Bc5 {[%emt 0:01:26]} 26. Bc3 {[%emt 0:01:29]} Bd4 {[%emt 0:00:23]} 27. Bd2 {[%emt 0:01:21]} h5 {[%emt 0:04:03]} 28. a5 {[%emt 0:02:26]} bxa5 {[%emt 0:00:33]} 29. Bxa5 {[%emt 0:00:24]} Bb6 {[%emt 0:00:10]} 30. Bd2 {[%emt 0:01:01]} g5 {[%emt 0:00:08]} 31. Ra1 {[%emt 0:07:34]} g4 {[%emt 0:00:31]} 32. Bb4 {[%emt 0:01:10]} Nd4 {[%emt 0:01:17]} 33. Be7 {[%emt 0:02:27]} Ne2+ {[%emt 0:00:51]} 34. Kh1 {[%emt 0:00:11]} Rd7 {[%emt 0:00:48]} 35. Bxf6 {[%emt 0:00:42]} Rf8 {[%emt 0:00:41]} 36. Bxe5 {[%emt 0:00:56]} Rxf2 {[%emt 0:01:00]} 37. Rxf2 {[%emt 0:01:06]} Bxf2 {[%emt 0:00:25]} 38. Ra2 {[%emt 0:00:24]} Re7 {[%emt 0:00:33]} 39. Rxe2 {[%emt 0:00:48]} Bd4 {[%emt 0:00:01]} 40. Bd5+ {[%emt 0:00:47]} Kb8 {[%emt 0:00:26]} 41. Bxc7+ {[%emt 0:16:07]} Rxc7 {[%emt 0:15:13]} 42. Re8+ {[%emt 0:02:32]} Ka7 {[%emt 0:00:44]} 43. Bc6 {[%emt 0:00:49]} Rf7 {[%emt 0:00:32]} 44. Re1 {[%emt 0:01:16]} Kb6 {[%emt 0:00:57]} 45. Be8 {[%emt 0:02:07]} Rf5 {[%emt 0:00:35]} 46. Re6+ {[%emt 0:04:50]} Kb7 {[%emt 0:01:50]} 47. Bc6+ {[%emt 0:00:31]} Kc7 {[%emt 0:00:14]} 48. Re1 {[%emt 0:00:45]} Kb6 {[%emt 0:00:17]} 49. Bd7 {[%emt 0:01:21]} Rf7 {[%emt 0:01:46]} 50. Be8 {[%emt 0:00:48]} Rf5 {[%emt 0:00:20]} 51. Bg6 {[%emt 0:00:47]} Rxb5 {[%emt 0:00:46]} 52. Be8 {[%emt 0:00:50]} Rc5 {[%emt 0:00:30]} 53. Rb1+ {[%emt 0:00:47] normal} Kc7 {[%emt 0:00:15] normal} 54. Bg6 {[%emt 0:00:47] normal} h4 {[%emt 0:02:17]} 55. Be4 {[%emt 0:00:59] normal} g3 {[%emt 0:00:27]} 56. h3 {[%emt 0:00:42]} Rc2 {[%emt 0:00:42] normal} 57. Rb7+ {[%emt 0:01:05] normal} 1/2-1/2

[Event "GER-ch Youth U10 2019"]
[Site "Willingen"]
[Date "2019.06.14"]
[Round "9.8"]
[White "Dordevic, Tom"]
[Black "Aniol, Nico"]
[Result "1/2-1/2"]
[ECO "B01"]
[WhiteElo "1158"]
[BlackElo "1406"]
[Annotator "NA"]
[PlyCount "79"]
[EventDate "2019.06.07"]
[EventType "swiss"]
[EventRounds "11"]
[EventCountry "GER"]
[SourceTitle "playchess.com"]
[Source "ChessBase"]
[SourceQuality "1"]
[TimeControl "40/4500+30:900+30"]

1. e4 {[%emt 0:00:00]} d5 {[%emt 0:00:00]} 2. exd5 {[%emt 0:00:00]} Nf6 {[%emt 0:00:00]} 3. d4 {[%emt 0:00:17]} Bg4 {[%emt 0:00:21]} 4. f3 {[%emt 0:00:38]} Bf5 {[%emt 0:00:08]} 5. c4 {[%emt 0:04:24]} e6 {[%emt 0:00:26]} 6. dxe6 {[%emt 0:00:22]} Nc6 {[%emt 0:00:10]} 7. exf7+ {[%emt 0:18:40]} Kxf7 {[%emt 0:00:11]} 8. Bd3 {[%emt 0:01:06]} Bxd3 {[%emt 0:02:32]} 9. Qxd3 {[%emt 0:00:15]} Qxd4 {[%emt 0:00:10]} 10. Qxd4 {[%emt 0:02:48]} Nxd4 {[%emt 0:00:04]} 11. Kd1 {[%emt 0:00:24]} Rd8 {[%emt 0:00:07]} 12. Bd2 {[%emt 0:00:48]} Bc5 {[%emt 0:00:51]} 13. Ne2 {[%emt 0:13:04]} Nxe2 {[%emt 0:00:50]} 14. Kxe2 {[%emt 0:00:06]} Rhe8+ 15. Kd1 {[%emt 0:00:32]} Rd4 {[%emt 0:00:44]} 16. b3 {[%emt 0:04:43]} Red8 {[%emt 0:00:11]} 17. Kc2 {[%emt 0:00:42]} Rd3 {[%emt 0:00:20]} 18. Re1 {[%emt 0:09:02]} Bf2 {[%emt 0:03:34]} 19. Re2 {[%emt 0:02:43]} Bb6 {[%emt 0:00:48]} 20. Nc3 {[%emt 0:01:53]} R3d7 {[%emt 0:01:33]} 21. Rae1 {[%emt 0:02:37]} Bc5 {[%emt 0:00:46]} 22. Bg5 {[%emt 0:05:47]} Bd6 {[%emt 0:00:30]} 23. Re6 {[%emt 0:02:14]} Bxh2 {[%emt 0:01:04]} 24. Nd5 {[%emt 0:01:50]} Re8 {[%emt 0:01:52]} 25. Rxf6+ {[%emt 0:04:29]} gxf6 {[%emt 0:00:07]} 26. Rxe8 {[%emt 0:00:06]} Kxe8 {[%emt 0:00:11]} 27. Nxf6+ {[%emt 0:00:10]} Ke7 {[%emt 0:00:13]} 28. Nxd7+ {[%emt 0:00:04]} Kxd7 {[%emt 0:00:09]} 29. Be3 {[%emt 0:00:16]} a6 {[%emt 0:00:06]} 30. Bd4 {[%emt 0:00:40]} Kd6 {[%emt 0:00:15]} 31. Kd3 {[%emt 0:00:42]} c5 {[%emt 0:00:15]} 32. Bc3 {[%emt 0:00:50]} b6 {[%emt 0:00:48]} 33. Bf6 {[%emt 0:00:32]} Bg3 {[%emt 0:00:21]} 34. Bd8 {[%emt 0:00:55]} b5 {[%emt 0:00:07]} 35. Bb6 {[%emt 0:01:39]} Kc6 {[%emt 0:00:18]} 36. Bd8 {[%emt 0:00:13]} Kd6 {[%emt 0:00:08]} 37. Bg5 {[%emt 0:00:58]} Ke5 {[%emt 0:01:13] normal} 38. Be7 {[%emt 0:01:30]} Bf2 {[%emt 0:00:07] normal} 39. cxb5 {[%emt 0:02:13]} axb5 {[%emt 0:00:07] normal} 40. Bg5 {[%emt 0:02:03] normal} 1/2-1/2